bitfinex/quotes_SOLUSD_20250918
["timestamp","ask_amount","ask_price","bid_price","bid_amount"]
[1758163973110,0.06,246.43,246.42,1.50432314]
[1758163977097,0.06,246.43,246.42,0.78432314]
[1758163977308,0.06,246.43,246.42,0.5]
[1758163977495,0.06,246.43,246.42,32.28]
[1758163977902,0.06,246.43,246.42,0.5]
[1758163978101,0.06,246.43,246.42,32.28]
[1758163978306,1.3251392,246.43,246.42,0.5]
[1758163978612,2.0351392,246.43,246.42,0.5]
[1758163980915,0.06,246.43,246.42,0.5]
[1758163981116,0.06,246.43,246.42,32.28]
[1758163981595,1.3251392,246.43,246.42,32.28]
[1758163981795,1.3251392,246.43,246.42,0.5]
[1758163981997,2.0251392,246.43,246.42,0.5]
[1758163983118,17.65370617,246.42,246.41,0.03]
[1758163983296,5.32325136,246.42,246.41,0.03]
[1758163983498,27.9351392,246.42,246.41,0.03]
[1758163983694,1.9351392,246.42,246.41,0.03]
[1758163985616,0.06,246.43,246.41,0.03]
[1758163985808,1.2651392,246.42,246.41,0.03]
[1758163986403,1.9351392,246.42,246.41,0.03]
[1758163988416,1.2651392,246.42,246.41,0.03]
[1758163989927,1.9351392,246.42,246.41,0.03]
[1758163990509,1.2651392,246.42,246.41,0.03]
[1758163990820,1.9351392,246.42,246.41,0.03]
[1758163992120,3.2002784,246.42,246.41,0.03]
[1758163992324,27.9351392,246.42,246.41,0.03]
[1758163992705,1.9351392,246.42,246.41,0.03]
[1758163993000,27.9351392,246.42,246.41,0.03]
[1758163993201,41.53073321,246.42,246.41,0.03]
[1758163993702,45.5266122,246.42,246.41,0.03]
[1758163994735,49.3220298,246.42,246.41,0.03]
[1758163994911,30.05827685,246.41,246.4,0.03]
[1758163995105,13.59559401,246.4,246.38,0.03]
[1758163995310,14.86073321,246.39,246.38,0.03]
[1758163995510,15.53073321,246.39,246.38,0.03]
[1758163996928,19.58933948,246.39,246.38,0.03]
[1758163997932,14.86073321,246.38,246.37,0.03]
[1758163998437,15.53073321,246.38,246.37,0.03]
[1758163999732,15.53073321,246.38,246.36,0.03]
[1758163999733,17.65452975,246.37,246.36,0.03]
[1758163999932,18.91966895,246.37,246.36,0.03]
[1758164000130,19.58966895,246.37,246.36,0.03]
[1758164000822,13.87991715,246.36,246.33,0.03]
[1758164001134,39.59559401,246.34,246.33,0.03]
[1758164001541,40.26559401,246.34,246.33,0.03]
[1758164001845,42.24502009,246.34,246.33,0.03]
[1758164002026,40.26559401,246.34,246.33,0.03]
[1758164002222,42.24502009,246.34,246.33,0.03]
[1758164006141,1.97942608,246.34,246.33,0.73]
[1758164006644,1.97942608,246.34,246.33,0.03]
[1758164008442,1.97942608,246.34,246.33,0.73]
[1758164008837,1.97942608,246.36,246.33,0.73]
[1758164009143,1.97942608,246.37,246.33,0.73]
[1758164010247,1.97942608,246.34,246.33,0.03]
[1758164010442,4.05892075,246.38,246.33,0.73]
[1758164010742,1.97942608,246.34,246.33,0.03]
[1758164011134,1.97942608,246.34,246.33,0.73]
[1758164012443,4.05892075,246.38,246.33,0.73]
[1758164012645,1.97942608,246.34,246.33,0.73]
[1758164014345,1.97942608,246.35,246.33,0.73]
[1758164014545,1.97942608,246.35,246.34,0.67]
[1758164014743,1.97942608,246.35,246.27,0.28432314]
[1758164014744,0.71,246.35,246.27,0.28432314]
[1758164014941,26.71,246.35,246.26,0.67]
[1758164015167,13.59559401,246.34,246.26,0.67]
[1758164015457,0.71,246.35,246.26,0.67]
[1758164015653,1.97942608,246.27,246.26,0.67]
[1758164015830,0.71,246.32,246.26,0.67]
[1758164016030,1.97942608,246.27,246.23,33.01]
[1758164016258,1.97942608,246.25,246.24,0.67]
[1758164016457,1.97942608,246.3,246.24,0.67]
[1758164016760,1.97942608,246.25,246.24,0.67]
[1758164016951,1.97942608,246.3,246.24,0.67]
[1758164017154,1.97942608,246.25,246.24,0.67]
[1758164017548,1.97942608,246.25,246.21,0.67]
[1758164017738,1.97942608,246.23,246.22,33.95]
[1758164018543,4.06048848,246.28,246.22,33.95]
[1758164018743,1.97942608,246.23,246.22,0.67]
[1758164018943,1.97942608,246.23,246.22,33.93]
[1758164019441,0.71,246.29,246.22,33.93]
[1758164019648,1.97942608,246.25,246.22,33.93]
[1758164019857,0.71,246.29,246.23,0.67]
[1758164020058,1.97942608,246.25,246.23,33.91]
[1758164020267,1.97942608,246.25,246.23,0.67]
[1758164020449,1.97942608,246.24,246.23,0.67]
[1758164020656,4.7703268,246.29,246.23,0.67]
[1758164021262,1.97942608,246.24,246.23,0.67]
[1758164021848,26.0,246.28,246.23,0.67]
[1758164022054,1.97942608,246.25,246.23,0.67]
[1758164022452,1.97942608,246.25,246.24,33.91]
[1758164022854,1.97942608,246.26,246.24,33.91]
[1758164023356,1.97942608,246.25,246.24,33.24]
[1758164023763,1.97942608,246.25,246.22,0.67]
[1758164023950,0.71,246.28,246.24,33.2]
[1758164024150,0.71,246.27,246.24,33.2]
[1758164025069,1.97942608,246.25,246.24,33.2]
[1758164025242,0.71,246.27,246.24,33.2]
[1758164025445,1.97942608,246.25,246.24,33.2]
[1758164026064,1.97942608,246.25,246.22,0.67]
[1758164026269,4.77065159,246.27,246.22,0.67]
[1758164026270,4.77065159,246.27,246.24,33.14]
[1758164026449,0.71,246.26,246.24,33.14]
[1758164027382,1.97942608,246.25,246.24,33.14]
[1758164027569,6.04033978,246.25,246.24,33.14]
[1758164029175,1.97942608,246.25,246.24,33.14]
[1758164030674,1.97942608,246.25,246.21,0.67]
[1758164030970,4.06067942,246.27,246.24,33.06]
[1758164031174,0.71,246.26,246.24,33.06]
[1758164031360,0.71,246.26,246.2,0.67]
[1758164031550,0.71,246.26,246.21,33.04]
[1758164031751,0.71,246.26,246.24,0.03]
[1758164032053,1.97942608,246.25,246.24,0.03]
[1758164032569,0.71,246.25,246.24,0.03]
[1758164032757,2.68942608,246.25,246.24,0.03]
[1758164033462,1.97942608,246.25,246.24,0.03]
[1758164033671,2.68942608,246.25,246.24,0.03]
[1758164035676,0.71,246.25,246.24,0.03]
[1758164035973,2.68942608,246.25,246.24,0.03]
[1758164038172,1.97942608,246.25,246.24,0.03]
[1758164039660,2.63942608,246.25,246.24,0.03]
[1758164041658,1.97942608,246.25,246.24,0.03]
[1758164042973,2.63942608,246.25,246.24,0.03]
[1758164044457,14.25559401,246.25,246.24,0.03]
[1758164044664,16.23502009,246.25,246.24,0.03]
[1758164045482,39.59559401,246.22,246.21,0.03]
[1758164045696,17.55444617,246.22,246.21,0.03]
[1758164045975,18.21444617,246.22,246.21,0.03]
[1758164046886,22.27585466,246.22,246.21,0.03]
[1758164049164,20.29642858,246.22,246.21,0.03]
[1758164049768,22.27585466,246.22,246.21,0.03]
[1758164051359,15.57502009,246.22,246.21,0.03]
[1758164051588,1.97942608,246.22,246.21,0.03]
[1758164052089,2.63942608,246.22,246.21,0.03]
[1758164052258,30.61885216,246.22,246.21,0.03]
[1758164052462,44.21444617,246.22,246.21,0.03]
[1758164054570,4.06103554,246.25,246.21,0.73]
[1758164054772,1.97942608,246.23,246.21,0.73]
[1758164054962,1.97942608,246.23,246.22,0.7]
[1758164056072,4.06112194,246.24,246.21,0.03]
[1758164056373,1.97942608,246.22,246.21,0.03]
[1758164056971,0.66,246.25,246.21,0.03]
[1758164057183,1.97942608,246.22,246.21,0.03]
[1758164057870,6.04083457,246.22,246.21,0.03]
[1758164058270,8.68026065,246.22,246.21,0.03]
[1758164058492,30.72140849,246.22,246.21,0.03]
[1758164058701,32.70083457,246.22,246.21,0.03]
[1758164059875,34.68026065,246.22,246.21,0.03]
[1758164061799,26.0,246.19,246.18,0.03]
[1758164061972,27.26824512,246.19,246.18,0.03]
[1758164063687,31.33014852,246.19,246.18,0.03]
[1758164065100,31.99014852,246.19,246.18,0.03]
[1758164065702,45.58574253,246.19,246.18,0.03]
[1758164065996,13.59559401,246.18,246.16,0.03]
[1758164066197,14.86383913,246.17,246.16,0.03]
[1758164066392,15.52383913,246.17,246.16,0.03]
[1758164066990,19.58607254,246.17,246.16,0.03]
[1758164067396,18.31782742,246.17,246.16,0.03]
[1758164067588,18.92607254,246.17,246.16,0.03]
[1758164068291,5.33047853,246.17,246.16,0.73]
[1758164068691,5.33047853,246.17,246.16,0.03]
[1758164069785,5.99047853,246.17,246.16,0.03]
[1758164070196,45.58607254,246.17,246.16,0.03]
[1758164070395,44.92607254,246.17,246.16,0.03]
[1758164070583,31.33047853,246.17,246.16,0.03]
[1758164072191,26.0,246.18,246.16,0.73]
[1758164072391,4.06171095,246.21,246.16,0.03]
[1758164072702,13.59559401,246.22,246.16,0.03]
[1758164072703,1.26824512,246.18,246.16,0.03]
[1758164073003,1.26824512,246.18,246.17,0.72]
[1758164073591,26.71,246.22,246.17,0.72]
[1758164073806,1.26824512,246.18,246.17,0.72]
[1758164074317,5.33034747,246.18,246.16,0.03]
[1758164074494,1.26824512,246.17,246.16,0.03]
[1758164074679,1.26824512,246.17,246.16,0.75]
[1758164075396,1.26824512,246.17,246.16,0.03]
[1758164076390,1.26824512,246.17,246.16,0.75]
[1758164077104,1.26824512,246.17,246.16,0.03]
[1758164078201,1.26824512,246.17,246.16,0.75]
[1758164079712,4.06193838,246.19,246.16,0.75]
[1758164080010,1.26824512,246.17,246.16,0.03]
[1758164084493,1.26824512,246.17,246.16,0.75]
[1758164084688,4.06155248,246.22,246.16,0.75]
[1758164084897,1.26824512,246.18,246.16,0.75]
[1758164085102,1.26824512,246.17,246.16,0.75]
[1758164086320,1.26824512,246.17,246.16,0.03]
[1758164089312,1.97824512,246.17,246.16,0.03]
[1758164089819,1.26824512,246.17,246.16,0.03]
[1758164091134,4.12209076,246.18,246.16,0.03]
[1758164091303,1.26824512,246.17,246.16,0.03]
[1758164094038,4.83209076,246.18,246.16,0.03]
[1758164094238,1.26824512,246.17,246.16,0.03]
[1758164094817,1.26824512,246.17,246.16,0.75]
[1758164095036,1.26824512,246.17,246.16,0.03]
[1758164096858,1.97824512,246.17,246.16,0.03]
[1758164097317,1.26824512,246.17,246.16,0.03]
[1758164100234,4.12209283,246.18,246.16,0.03]
[1758164100536,1.26824512,246.17,246.16,0.03]
[1758164100921,0.06,246.18,246.16,0.74]
[1758164101127,1.32824512,246.18,246.17,0.71]
[1758164101636,0.06,246.18,246.17,0.71]
[1758164101820,0.06,246.18,246.17,33.09432314]
[1758164102831,0.06,246.18,246.17,37.15655655]
[1758164103434,0.06,246.18,246.17,0.71]
[1758164103746,0.06,246.18,246.17,0.66]
[1758164104737,0.06,246.18,246.17,32.74]
[1758164105126,0.06,246.18,246.17,33.02432314]
[1758164106442,0.06,246.18,246.17,33.00432314]
[1758164107826,0.06,246.18,246.17,14.53991715]
[1758164108048,0.06,246.18,246.17,46.59991715]
[1758164109838,1e-08,246.18,246.17,46.59991715]
[1758164110030,1e-08,246.18,246.17,47.00614049]
[1758164110928,1e-08,246.18,246.17,48.63172722]
[1758164111328,1e-08,246.18,246.17,16.57172722]
[1758164111531,1e-08,246.18,246.17,48.18550388]
[1758164112724,1e-08,246.21,246.2,39.87991715]
[1758164112925,1e-08,246.23,246.21,0.28432314]
[1758164113147,1e-08,246.23,246.22,46.55991715]
[1758164114627,1e-08,246.23,246.22,76.62132564]
[1758164117123,0.06,246.24,246.23,0.28432314]
[1758164117124,1e-08,246.24,246.23,0.28432314]
[1758164117429,1e-08,246.24,246.23,0.94432314]
[1758164120025,1e-08,246.24,246.23,14.9460415]
[1758164120242,1e-08,246.24,246.23,16.57129799]
[1758164126138,0.06,246.29,246.28,39.87991715]
[1758164126450,0.06,246.29,246.28,71.77991715]
[1758164126834,0.06,246.33,246.29,13.87991715]
[1758164127030,0.06,246.33,246.31,4.05992448]
[1758164127254,0.06,246.33,246.32,31.9]
[1758164129054,0.75,246.33,246.32,31.9]
[1758164129238,0.75,246.33,246.32,31.88]
[1758164129440,0.75,246.33,246.31,4.05992448]
[1758164129641,0.06,246.33,246.32,31.88]
[1758164130267,0.75,246.33,246.32,31.88]
[1758164131655,0.75,246.33,246.32,32.16432314]
[1758164132045,0.06,246.33,246.32,32.16432314]
[1758164133643,0.74,246.33,246.3,0.28432314]
[1758164133961,0.74,246.33,246.31,31.84]
[1758164134146,0.06,246.33,246.32,31.84]
[1758164134760,0.74,246.33,246.32,31.84]
[1758164135345,0.74,246.33,246.32,35.89975966]
[1758164136358,0.06,246.33,246.32,36.1840828]
[1758164137344,0.06,246.36,246.35,30.05926527]
[1758164137552,0.06,246.36,246.35,62.14358841]
[1758164138468,0.06,246.36,246.35,76.42918242]
[1758164139370,0.06,246.36,246.35,75.73918242]
[1758164139543,0.06,246.36,246.35,76.42918242]
[1758164139748,0.74,246.36,246.35,4.34358841]
[1758164139970,0.74,246.36,246.35,36.12358841]
[1758164140348,0.06,246.36,246.35,36.12358841]
[1758164142856,0.06,246.36,246.35,50.40918242]
[1758164143257,0.06,246.36,246.35,52.03371283]
[1758164143453,1e-08,246.36,246.35,52.03371283]
[1758164145867,0.06,246.41,246.4,26.28432314]
[1758164146167,0.68,246.48,246.42,0.28432314]
[1758164146369,0.68,246.48,246.42,45.65991715]
[1758164146574,0.68,246.47,246.42,47.28398584]
[1758164146966,30.05559058,246.58,246.42,51.342098]
[1758164147161,0.68,246.49,246.43,39.87991715]
[1758164147465,0.68,246.51,246.43,14.56991715]
[1758164148351,0.68,246.49,246.43,14.56991715]
[1758164148546,2.7142983,246.6,246.43,14.56991715]
[1758164148547,0.68,246.46,246.43,45.65991715]
[1758164148858,0.68,246.46,246.43,71.65991715]
[1758164150981,0.68,246.46,246.43,39.87991715]
[1758164151159,0.68,246.46,246.43,71.65991715]
[1758164151674,0.68,246.46,246.43,39.87991715]
[1758164151871,0.74,246.44,246.43,71.65991715]
[1758164152170,0.74,246.44,246.43,58.06432314]
[1758164152351,0.74,246.44,246.43,26.28432314]
[1758164152552,0.74,246.44,246.43,32.06432314]
[1758164152776,0.74,246.44,246.4,4.05831082]
[1758164152963,0.68,246.43,246.41,31.78]
[1758164153285,0.68,246.42,246.41,32.06432314]
[1758164153467,0.68,246.42,246.41,31.78]
[1758164153967,0.68,246.42,246.41,32.06432314]
[1758164154168,0.68,246.42,246.41,31.78]
[1758164162688,0.06,246.43,246.41,31.78]
[1758164162981,0.72,246.42,246.41,35.83816579]
[1758164165784,0.06,246.43,246.41,35.83816579]
[1758164165984,0.06,246.43,246.41,36.52816579]
[1758164166377,0.06,246.43,246.41,35.83816579]
[1758164169387,0.72,246.42,246.38,0.28432314]
[1758164169578,0.06,246.43,246.39,31.76]
[1758164169786,0.72,246.42,246.4,31.76]
[1758164169995,0.06,246.43,246.38,0.28432314]
[1758164170171,0.06,246.43,246.39,31.76]
[1758164170484,0.06,246.43,246.4,31.76]
[1758164170665,0.72,246.42,246.4,31.76]
[1758164171283,0.72,246.42,246.41,31.76]
[1758164171479,0.72,246.42,246.39,4.05860627]
[1758164171679,0.06,246.43,246.41,31.76]
[1758164171994,0.06,246.43,246.42,31.76]
[1758164172296,0.06,246.43,246.42,35.81811216]
[1758164172786,0.06,246.43,246.42,36.1024353]
[1758164172975,0.06,246.43,246.42,36.7924353]
[1758164173175,0.06,246.43,246.42,5.0324353]
[1758164173391,0.06,246.43,246.42,36.7924353]
[1758164179288,0.06,246.43,246.42,5.0324353]
[1758164179494,0.06,246.43,246.42,36.7924353]
[1758164183605,0.06,246.43,246.42,36.1024353]
[1758164183792,0.06,246.43,246.42,36.7924353]
[1758164183993,0.06,246.43,246.42,36.1024353]
[1758164184401,0.78,246.43,246.42,62.1024353]
[1758164184890,0.06,246.43,246.42,62.1024353]
[1758164186602,0.78,246.43,246.41,0.03]
[1758164186802,0.72,246.42,246.41,0.03]
[1758164187192,0.72,246.42,246.41,31.77]
[1758164189806,0.72,246.42,246.41,0.03]
[1758164189985,0.72,246.42,246.41,31.77]
[1758164190186,0.72,246.42,246.41,0.03]
[1758164190394,0.72,246.42,246.41,31.77]
[1758164191488,0.72,246.42,246.41,0.03]
[1758164191694,0.72,246.42,246.41,31.77]
[1758164194192,0.72,246.42,246.41,0.03]
[1758164194501,1.984422,246.42,246.41,31.77]
[1758164196594,1.984422,246.42,246.41,0.03]
[1758164198253,27.984422,246.42,246.41,0.03]
[1758164203566,1.984422,246.42,246.41,0.03]
[1758164206751,27.984422,246.42,246.41,0.03]
[1758164208845,41.58001601,246.42,246.41,0.03]
[1758164212549,42.84443801,246.42,246.41,0.03]
[1758164212761,45.56921526,246.42,246.41,0.03]
[1758164213859,45.56921526,246.42,246.38,0.03]
[1758164213860,17.65387086,246.41,246.38,0.03]
[1758164214050,40.86001601,246.39,246.38,0.03]
[1758164214246,43.8691164,246.39,246.38,0.03]
[1758164214451,44.5591164,246.39,246.38,0.03]
[1758164214742,46.18483527,246.39,246.38,0.03]
[1758164215148,50.24344154,246.39,246.38,0.03]
[1758164215460,13.87991715,246.38,246.36,0.03]
[1758164215660,14.86001601,246.37,246.36,0.03]
[1758164215845,15.55001601,246.37,246.36,0.03]
[1758164216452,15.55001601,246.37,246.32,0.03]
[1758164216453,13.59559401,246.33,246.32,0.03]
[1758164216755,14.86001601,246.33,246.32,0.03]
[1758164216949,14.28559401,246.33,246.32,0.03]
[1758164217155,24.66729886,246.33,246.32,0.03]
[1758164217966,56.38729886,246.33,246.32,0.03]
[1758164218153,30.05959485,246.33,246.32,0.03]
[1758164218472,4.05827685,246.41,246.32,0.73]
[1758164218648,1.264422,246.4,246.32,0.73]
[1758164218966,1.264422,246.39,246.32,0.73]
[1758164219164,1.264422,246.42,246.34,0.28432314]
[1758164219366,1.324422,246.43,246.35,0.7]
[1758164219548,1.264422,246.42,246.35,0.7]
[1758164219745,1.264422,246.4,246.35,0.7]
[1758164220064,1.264422,246.39,246.35,0.7]
[1758164220257,1.264422,246.4,246.35,0.7]
[1758164220456,30.11797887,246.43,246.35,0.7]
[1758164220659,1.264422,246.41,246.35,0.7]
[1758164221471,1.264422,246.41,246.35,4.75910181]
[1758164221665,1.264422,246.41,246.35,4.05910181]
[1758164221849,1.264422,246.41,246.36,0.7]
[1758164222177,0.06,246.43,246.36,0.7]
[1758164222349,0.06,246.43,246.36,0.98432314]
[1758164222671,1.324422,246.43,246.37,31.72]
[1758164222876,1.324422,246.43,246.38,0.69]
[1758164223051,1.324422,246.43,246.39,0.69]
[1758164223245,1.324422,246.43,246.4,0.69]
[1758164223446,0.06,246.43,246.4,0.69]
[1758164223667,0.06,246.43,246.38,4.05863421]
[1758164223668,1.264422,246.42,246.38,0.69]
[1758164223866,1.264422,246.42,246.39,0.69]
[1758164224055,1.324422,246.43,246.4,0.69]
[1758164224256,1.324422,246.43,246.37,35.77886733]
[1758164224478,1.324422,246.43,246.41,0.69]
[1758164224965,0.06,246.43,246.41,0.69]
[1758164225163,1.324422,246.43,246.41,0.69]
[1758164225356,0.06,246.43,246.42,0.69]
[1758164233966,0.06,246.43,246.42,31.7]
[1758164234168,0.06,246.43,246.39,0.69]
[1758164234367,0.06,246.43,246.42,31.7]
[1758164235071,0.06,246.43,246.39,0.69]
[1758164235376,0.06,246.43,246.42,31.7]
[1758164235576,1.324422,246.43,246.42,31.7]
[1758164235877,1.994422,246.43,246.42,31.7]
[1758164238076,1.324422,246.43,246.42,31.7]
[1758164239077,0.06,246.43,246.42,32.39]
[1758164242566,0.06,246.43,246.42,32.67432314]
[1758164242767,0.06,246.43,246.42,46.26991715]
[1758164243263,0.06,246.43,246.42,32.67432314]
[1758164243472,0.06,246.43,246.42,34.29845778]
[1758164243670,0.06,246.43,246.42,32.67432314]
[1758164246788,0.06,246.43,246.42,31.98432314]
[1758164247175,0.06,246.43,246.42,32.67432314]
[1758164248065,0.06,246.43,246.42,32.39]
[1758164248298,0.06,246.43,246.41,30.05816086]
[1758164248473,0.06,246.43,246.4,0.14216157]
[1758164248673,0.06,246.43,246.41,31.68]
[1758164250089,0.06,246.43,246.42,31.68]
[1758164250296,0.73,246.43,246.42,31.68]
[1758164251182,0.06,246.43,246.42,31.68]
[1758164253193,0.75,246.43,246.42,31.68]
[1758164253386,0.75,246.43,246.38,4.05871248]
[1758164253698,0.06,246.43,246.38,4.05871248]
[1758164253898,0.75,246.43,246.39,31.68]
[1758164254083,0.75,246.43,246.4,31.68]
[1758164256582,0.06,246.43,246.4,31.68]
[1758164257693,0.69,246.42,246.4,31.68]
[1758164257894,0.06,246.43,246.4,31.68]
[1758164258096,0.06,246.43,246.41,0.71]
[1758164258479,0.06,246.43,246.42,0.71]
[1758164259787,0.06,246.43,246.42,5.0524353]
[1758164261083,0.06,246.43,246.38,10.14686564]
[1758164261084,0.06,246.43,246.4,4.76830152]
[1758164261407,0.06,246.43,246.41,31.66]
[1758164261800,0.06,246.43,246.41,32.37]
[1758164262008,0.06,246.43,246.41,36.42811288]
[1758164265991,0.06,246.43,246.42,0.71]
[1758164266197,0.06,246.43,246.41,36.42811288]
[1758164266597,0.06,246.43,246.41,35.71811288]
[1758164267394,0.06,246.43,246.41,4.05811288]
[1758164267584,0.06,246.43,246.42,31.66]
[1758164270111,0.06,246.43,246.41,4.76811288]
[1758164270312,0.06,246.43,246.42,31.66]
[1758164271813,0.06,246.43,246.42,32.37]
[1758164272010,0.06,246.43,246.42,31.66]
[1758164275121,0.06,246.43,246.42,32.65432314]
[1758164276597,0.06,246.43,246.42,58.65432314]
[1758164278823,0.06,246.43,246.42,26.99432314]
[1758164279010,0.06,246.43,246.42,58.63432314]
[1758164283335,0.06,246.43,246.41,4.05811288]
[1758164283512,0.65,246.42,246.39,4.05848943]
[1758164283709,0.65,246.42,246.4,31.64]
[1758164284214,0.06,246.43,246.4,31.64]
[1758164284415,0.06,246.43,246.41,0.28432314]
[1758164284715,0.06,246.43,246.42,32.57432314]
[1758164285229,0.06,246.43,246.42,36.6324353]
[1758164286022,0.06,246.43,246.42,35.9624353]
[1758164286418,0.71,246.43,246.42,35.9624353]
[1758164286931,0.06,246.43,246.42,35.9624353]
[1758164291311,0.06,246.43,246.42,36.6324353]
[1758164293248,0.06,246.43,246.42,37.03824651]
[1758164293433,0.06,246.43,246.42,36.6324353]
[1758164294040,0.06,246.43,246.42,50.22802931]
[1758164294239,1e-08,246.44,246.43,13.87991715]
[1758164294467,1e-08,246.44,246.43,14.54991715]
[1758164301970,1e-08,246.44,246.43,14.57991715]
[1758164304973,1e-08,246.44,246.43,93.47991715]
[1758164307379,0.06,246.47,246.46,39.59559401]
[1758164307554,0.06,246.47,246.46,45.47991715]
[1758164307754,0.06,246.47,246.46,46.14991715]
[1758164308355,0.65,246.52,246.47,13.87991715]
[1758164308562,0.65,246.5,246.47,13.87991715]
[1758164309079,0.65,246.5,246.47,17.93720606]
[1758164311070,0.65,246.5,246.47,49.51720606]
[1758164311255,0.71,246.48,246.47,61.92161205]
[1758164311451,0.71,246.48,246.47,61.63728891]
[1758164311656,0.71,246.48,246.47,61.92161205]
[1758164311961,0.71,246.48,246.47,61.77945048]
[1758164312157,0.71,246.48,246.47,61.92161205]
[1758164316171,0.71,246.48,246.47,4.05728891]
[1758164316354,0.71,246.48,246.47,35.63728891]
[1758164317994,0.06,246.48,246.47,35.92161205]
[1758164318167,0.73,246.48,246.47,35.92161205]
[1758164320087,0.73,246.48,246.47,35.63728891]
[1758164323869,0.06,246.48,246.47,35.92161205]
[1758164324069,0.06,246.48,246.47,62.59161205]
[1758164324690,0.06,246.48,246.47,61.92161205]
[1758164325670,0.06,246.48,246.47,62.59161205]
[1758164327393,0.06,246.48,246.47,76.18720606]
[1758164332889,0.06,246.48,246.47,75.51720606]
[1758164333701,0.06,246.48,246.47,76.18720606]
[1758164334287,0.06,246.48,246.47,81.60607571]
[1758164334690,0.06,246.48,246.47,76.18720606]
[1758164334889,0.06,246.48,246.47,80.34255583]
[1758164335193,0.06,246.48,246.47,79.67255583]
[1758164336797,0.06,246.48,246.47,80.34255583]
[1758164337301,0.06,246.48,246.47,80.37255583]
[1758164338386,0.06,246.48,246.47,79.70255583]
[1758164339482,0.06,246.48,246.47,61.95161205]
[1758164339683,0.72,246.48,246.47,61.95161205]
[1758164340587,0.72,246.48,246.47,61.80945048]
[1758164340797,0.72,246.48,246.47,61.95161205]
[1758164342405,0.06,246.48,246.47,61.95161205]
[1758164342585,0.06,246.48,246.47,61.91161205]
[1758164344585,0.06,246.48,246.47,31.06161205]
[1758164344797,0.06,246.48,246.47,61.91161205]
[1758164347581,0.72,246.48,246.47,57.85432314]
[1758164347779,0.06,246.48,246.47,57.85432314]
[1758164352604,3.39397864,246.58,246.55,26.0]
[1758164352792,0.1,246.59,246.57,0.28432314]
[1758164352995,0.1,246.59,246.58,31.82432314]
[1758164353708,0.1,246.59,246.58,35.87980209]
[1758164353907,0.1,246.59,246.58,35.85980209]
[1758164354085,0.1,246.59,246.58,4.33980209]
[1758164354289,0.76,246.59,246.58,31.52]
[1758164356922,0.76,246.59,246.53,0.28432314]
[1758164357090,0.76,246.59,246.54,31.52]
[1758164357291,0.66,246.58,246.54,31.52]
[1758164357611,0.66,246.57,246.55,31.52]
[1758164357801,0.66,246.56,246.55,31.52]
[1758164358322,0.66,246.56,246.47,0.72]
[1758164358512,0.66,246.56,246.48,31.52]
[1758164358717,0.66,246.55,246.49,0.28432314]
[1758164359100,0.66,246.55,246.5,31.52]
[1758164359318,0.66,246.54,246.5,31.52]
[1758164359494,0.66,246.53,246.5,31.52]
[1758164360117,0.66,246.53,246.51,4.05663056]
[1758164360295,0.66,246.53,246.52,31.52]